bitfinex/quotes_SOLUSD_20240818
["timestamp","ask_amount","ask_price","bid_price","bid_amount"]
[1724004898349,7.64164824,144.98,144.97,8.97]
[1724004898733,11.2495349,144.98,144.97,8.97]
[1724004899131,3.60788666,144.99,144.97,8.97]
[1724004899360,7.64193829,144.98,144.97,8.97]
[1724004900064,11.24982495,144.98,144.97,8.97]
[1724004900758,11.2497257,144.98,144.97,8.97]
[1724004902344,7.64183904,144.98,144.97,8.97]
[1724004902862,11.2497257,144.98,144.97,8.97]
[1724004904362,3.60788666,144.98,144.97,8.97]
[1724004904553,11.2502526,144.98,144.97,8.97]
[1724004905557,11.25235714,144.98,144.97,8.97]
[1724004908036,11.24748725,144.98,144.97,8.97]
[1724004908537,7.63960059,144.98,144.97,8.97]
[1724004908957,7.20342101,145.02,144.97,44.85]
[1724004909272,7.63937474,145.01,144.98,45.0]
[1724004909441,7.63937474,145.0,144.98,45.0]
[1724004909638,7.63907579,144.99,144.93,6.3102]
[1724004909850,7.63907579,144.98,144.94,65.0]
[1724004910045,17.05535337,145.03,144.94,65.0]
[1724004910245,3.61031353,145.04,144.99,8.97]
[1724004910440,3.61031353,145.04,144.97,35.88]
[1724004910441,6.5529,145.05,145.01,8.97]
[1724004910640,0.66655337,145.04,145.01,8.97]
[1724004911477,6.5529,145.05,145.01,8.97]
[1724004913134,7.20354289,145.06,145.03,8.97]
[1724004913339,16.3888,145.07,145.03,8.97]
[1724004916350,19.99911353,145.07,145.03,8.97]
[1724004916971,16.3888,145.07,145.03,8.97]
[1724004917464,19.99911353,145.07,145.03,8.97]
[1724004918945,7.1833168,145.05,145.03,0.973522]
[1724004919153,20.00311874,145.07,145.03,0.973522]
[1724004921564,17.05535337,145.07,144.97,51.2589]
[1724004921767,20.66967211,145.07,145.02,8.97]
[1724004922143,20.00311874,145.07,145.02,8.97]
[1724004922373,20.66967211,145.07,145.02,8.97]
[1724004922572,0.66655337,145.06,145.02,8.97]
[1724004922758,20.00311874,145.07,145.02,8.97]
[1724004923452,20.00311874,145.07,145.0,8.97]
[1724004923843,27.87101972,145.07,145.0,8.97]
[1724004924246,27.20446635,145.07,145.0,8.97]
[1724004924663,0.66655337,145.06,145.0,8.97]
[1724004924849,27.20446635,145.07,145.0,8.97]
[1724004925051,27.87101972,145.07,145.0,8.97]
[1724004925369,27.20446635,145.07,145.0,8.97]
[1724004927668,27.87101972,145.07,145.0,8.97]
[1724004927865,27.20446635,145.07,145.0,8.97]
[1724004928373,27.20446635,145.07,144.94,20.0]
[1724004928374,10.50851874,145.05,144.94,20.0]
[1724004928573,3.61431874,145.04,144.97,8.97]
[1724004929076,6.8942,145.05,144.97,8.97]
[1724004929077,3.61431874,145.0,144.97,8.97]
[1724004929557,3.61431874,144.99,144.97,8.97]
[1724004930353,3.61431874,145.0,144.97,8.97]
[1724004930554,15.8887,145.02,144.97,8.97]
[1724004930555,3.61431874,144.99,144.97,8.97]
[1724004930756,3.61431874,145.0,144.97,8.97]
[1724004933169,3.61431874,145.02,144.99,8.97]
[1724004933371,3.61431874,145.02,144.98,1.37933689]
[1724004933372,3.61431874,145.03,145.01,8.97]
[1724004933675,3.61431874,145.05,145.02,1.37883014]
[1724004933871,3.61431874,145.05,145.04,8.97]
[1724004935282,0.8591939,145.08,145.04,89.85]
[1724004935463,0.8591939,145.08,145.07,8.97]
[1724004937681,0.8591939,145.08,145.07,53.97]
[1724004938984,0.8591939,145.08,145.07,8.97]
[1724004940887,0.8591939,145.08,145.07,53.97]
[1724004941055,0.8591939,145.08,145.07,8.97]
[1724004941460,22.46951657,145.17,145.07,53.97]
[1724004941661,22.46951657,145.17,145.12,8.97]
[1724004942857,15.2746,145.17,145.12,8.97]
[1724004944669,0.66655337,145.16,145.08,45.0]
[1724004944982,15.2746,145.17,145.1,8.97]
[1724004945586,15.2746,145.17,145.08,45.0]
[1724004945783,15.2746,145.17,145.08,8.97]
[1724004946784,14.7746,145.17,145.08,8.97]
[1724004947196,15.44115337,145.17,145.08,8.97]
[1724004947787,14.7746,145.17,145.08,8.97]
[1724004948164,21.6632,145.17,145.1,8.97]
[1724004952191,21.6632,145.17,145.1,0.97794513]
[1724004953470,14.08486932,145.16,145.08,8.97]
[1724004955980,7.19586932,145.16,145.1,8.97]
[1724004959098,0.66655337,145.15,145.1,8.97]
[1724004959299,7.19586932,145.16,145.1,8.97]
[1724004959674,0.66655337,145.15,145.1,8.97]
[1724004959873,7.19586932,145.16,145.1,8.97]
[1724004960082,7.86242269,145.16,145.1,8.97]
[1724004960298,37.57242269,145.16,145.04,22.6183]
[1724004960471,25.1267,145.14,145.0,281.3952]
[1724004960801,6.8907,145.13,145.05,8.97]
[1724004961103,0.66655337,145.12,145.05,8.97]
[1724004961271,6.8907,145.13,145.05,8.97]
[1724004961478,29.6178,145.11,145.0,23.1952]
[1724004961782,0.66655337,145.1,145.01,8.97]
[1724004962680,29.6178,145.11,145.01,8.97]
[1724004962899,22.7265,145.11,145.03,8.97]
[1724004963582,22.7265,145.11,145.05,8.97]
[1724004963788,29.92642975,145.11,145.05,8.97]
[1724004969289,29.92642975,145.11,145.03,8.97]
[1724004970496,0.66655337,145.1,145.03,8.97]
[1724004970887,29.92642975,145.11,145.03,8.97]
[1724004971291,0.66655337,145.1,145.03,8.97]
[1724004971586,29.92642975,145.11,145.03,8.97]
[1724004971787,0.66655337,145.1,145.03,8.97]
[1724004972590,29.92642975,145.11,145.03,8.97]
[1724004975605,0.66655337,145.1,145.03,8.97]
[1724004975897,29.92642975,145.11,145.03,8.97]
[1724004977894,0.66655337,145.1,145.03,8.97]
[1724004978097,29.92642975,145.11,145.03,8.97]
[1724004978399,23.39305337,145.11,145.03,8.97]
[1724004978608,7.19931528,145.1,145.03,8.97]
[1724004982212,10.80933843,145.1,145.03,8.97]
[1724004982923,10.80933843,145.1,145.05,8.97]
[1724004983428,16.1567,145.11,145.09,8.97]
[1724004983593,16.1567,145.11,145.09,0.97815751]
[1724004986303,6.5725,145.14,145.09,0.97815751]
[1724004986608,6.5725,145.14,145.11,8.97]
[1724004988424,16.1172,145.15,145.11,8.97]
[1724004989992,7.20178007,145.16,145.11,8.97]
[1724004990198,6.5351,145.18,145.15,8.97]
[1724004991018,6.5351,145.18,145.13,8.97]
[1724004993616,3.61002315,145.18,145.15,8.97]
[1724004994026,19.72722315,145.19,145.15,8.97]
[1724004997903,19.72722315,145.19,145.13,8.97]
[1724004998201,16.1172,145.19,145.13,8.97]
[1724004999411,19.72722315,145.19,145.13,8.97]
[1724005000325,16.1172,145.19,145.13,8.97]
[1724005003830,19.72722315,145.19,145.13,8.97]
[1724005004236,16.1172,145.19,145.13,8.97]
[1724005005910,0.66655337,145.18,145.13,8.97]
[1724005006334,16.1172,145.19,145.11,8.97]
[1724005009230,6.1264,145.17,145.08,8.97]
[1724005009446,24.74,145.16,145.08,8.97]
[1724005009642,8.97,145.14,145.03,264.7071]
[1724005009940,21.8964,145.11,145.04,8.97]
[1724005010179,21.8964,145.11,144.99,6.5071]
[1724005010180,9.63655337,145.1,144.99,6.5071]
[1724005010315,9.63655337,145.1,145.0,8.97]
[1724005010824,8.97,145.1,145.0,8.97]
[1724005011329,30.0,145.07,145.0,8.97]
[1724005011729,30.0,145.07,144.99,8.97]
[1724005012513,30.0,145.07,145.03,8.97]
[1724005012732,30.0,145.07,145.05,8.97]
[1724005013848,21.8964,145.11,145.05,8.97]
[1724005015251,21.8964,145.11,145.04,8.97]
[1724005016258,21.8964,145.11,144.97,35.88]
[1724005016440,21.8964,145.11,145.01,8.97]
[1724005016441,8.97,145.1,145.01,8.97]
[1724005016831,0.66655337,145.09,144.99,8.97]
[1724005017034,8.97,145.08,144.99,8.97]
[1724005017549,15.5074,145.07,144.99,8.97]
[1724005017842,30.0,145.06,144.99,8.97]
[1724005018043,6.2952,145.05,144.99,8.97]
[1724005018425,6.2952,145.05,145.0,1.37922466]
[1724005018842,30.0,145.04,145.0,1.37922466]
[1724005019854,30.0,145.04,144.99,8.97]
[1724005020042,6.2952,145.05,144.99,8.97]
[1724005020231,6.2952,145.05,144.95,6.5071]
[1724005020432,6.2952,145.05,144.97,22.41]
[1724005020750,6.2952,145.05,144.98,65.0]
[1724005026784,6.2952,145.05,144.93,15.3924]
[1724005026933,6.2952,145.05,144.95,22.41]
[1724005027445,30.0,145.03,144.95,22.41]
[1724005028164,30.0,145.03,144.96,20.0]
[1724005028352,29.5,145.03,144.96,20.0]
[1724005028538,29.5,145.03,144.97,45.0]
[1724005030469,6.2952,145.05,144.97,45.0]
[1724005031261,13.50116104,145.05,144.97,45.0]
[1724005033848,13.50116104,145.05,144.99,22.41]
[1724005034071,6.2952,145.05,145.0,1.37913759]
[1724005035388,6.2952,145.05,144.97,67.41]
[1724005035746,6.2952,145.05,144.98,1.37926428]
[1724005035951,6.2952,145.05,144.99,1.37922084]
[1724005036877,6.2952,145.05,144.98,1.37916566]
[1724005037068,6.2952,145.05,144.99,1.37916043]
[1724005038055,6.2952,145.05,144.98,1.37916344]
[1724005038265,6.2952,145.05,144.99,1.3791623]
[1724005038471,15.5074,145.07,145.0,1.37916289]
[1724005038667,15.5074,145.07,145.01,22.41]
[1724005040558,15.5074,145.07,145.01,8.96]
[1724005044965,15.5074,145.07,144.96,20.0]
[1724005045287,15.5074,145.07,144.97,8.96]
[1724005045288,6.3338,145.06,144.97,8.96]
[1724005049171,13.53273287,145.06,144.97,8.96]
[1724005049498,30.0,145.02,144.97,8.96]
[1724005053186,30.0,145.02,144.98,1.37932216]
[1724005053473,30.0,145.02,144.97,8.96]
[1724005054687,30.0,145.02,144.98,1.37932249]
[1724005055207,30.0,145.02,144.99,8.96]
[1724005055496,30.0,145.02,144.93,15.3924]
[1724005055497,6.3338,145.06,145.01,8.96]
[1724005055797,6.3338,145.06,145.0,1.37911041]
[1724005055997,6.3338,145.06,145.01,8.96]
[1724005059199,6.3338,145.06,144.99,8.96]
[1724005060291,6.3338,145.06,145.01,8.96]
[1724005060490,6.3338,145.06,145.01,10.33902798]
[1724005060878,6.3338,145.06,145.01,8.96]
[1724005065187,7.19660346,145.08,145.05,8.96]
[1724005065399,16.0285,145.11,145.07,8.96]
[1724005065699,16.0285,145.11,145.06,1.3784739]
[1724005065700,6.1216,145.13,145.1,8.96]
[1724005065882,30.0,145.11,145.1,8.96]
[1724005066083,6.1216,145.13,145.1,8.96]
[1724005066997,19.63852315,145.15,145.12,8.96]
[1724005067177,16.0285,145.15,145.12,8.96]
[1724005069671,16.0285,145.15,145.14,8.96]
[1724005072179,16.0285,145.15,145.01,21.3599]
[1724005072380,0.66655337,145.14,145.07,8.96]
[1724005072690,16.0285,145.15,145.07,8.96]
[1724005073004,16.0285,145.15,145.09,8.96]
[1724005074501,16.0285,145.15,145.08,22.37]
[1724005075489,16.0285,145.15,145.09,1.37822837]
[1724005076615,16.0285,145.15,145.09,46.37822837]
[1724005076795,16.0285,145.15,145.09,45.0]
[1724005079290,16.0285,145.15,145.1,1.37814267]
[1724005079797,16.0285,145.15,145.09,45.0]
[1724005080318,16.0285,145.15,145.09,46.37813886]
[1724005080494,16.0285,145.15,145.09,45.0]
[1724005081829,0.66655337,145.14,145.04,22.37]
[1724005082595,23.23047653,145.15,145.04,22.37]
[1724005082894,23.8970299,145.15,145.04,22.37]
[1724005083093,23.23047653,145.15,145.05,45.0]
[1724005084035,23.23047653,145.15,145.08,22.37]
[1724005084193,16.0285,145.15,145.1,22.37]
[1724005084515,16.0285,145.15,145.11,1.37801337]
[1724005085105,16.0285,145.15,145.1,22.37]
[1724005092819,16.0285,145.15,145.09,45.0]
[1724005092995,16.0285,145.15,145.08,22.37]
[1724005093196,16.0285,145.15,145.09,20.0]
[1724005094509,16.0285,145.15,145.1,8.95]
[1724005096828,16.69505337,145.15,145.08,8.95]
[1724005097013,16.0285,145.15,145.08,8.95]
[1724005097402,0.66655337,145.14,145.08,8.95]
[1724005097710,16.0285,145.15,145.08,8.95]
[1724005097912,16.0285,145.15,145.1,8.95]
[1724005100030,16.0285,145.15,145.04,35.8]
[1724005100326,16.0285,145.15,145.1,8.95]
[1724005111223,19.63852315,145.15,145.1,8.95]
[1724005112145,16.0285,145.15,145.1,8.95]
[1724005112329,19.63852315,145.15,145.1,8.95]
[1724005113542,3.61002315,145.14,145.1,8.95]
[1724005114115,4.27657652,145.13,145.07,8.95]
[1724005114320,3.61002315,145.13,145.07,8.95]
[1724005114516,4.27657652,145.13,145.05,20.0]
[1724005114752,4.27657652,145.13,144.97,55.8]
[1724005114753,25.46452315,145.12,145.01,15.2489]
[1724005115037,3.61002315,145.1,145.04,8.95]
[1724005115262,3.61002315,145.09,145.04,8.95]
[1724005116925,3.61002315,145.09,144.98,1.37863715]
[1724005116926,3.61002315,145.1,145.06,8.95]
[1724005117822,3.61002315,145.1,145.07,1.37845705]
[1724005118135,3.61002315,145.09,145.06,8.95]
[1724005118330,29.0378168,145.12,145.06,8.95]
[1724005118331,3.61002315,145.1,145.06,8.95]
[1724005122348,3.61002315,145.11,145.08,8.95]
[1724005125841,25.46452315,145.12,145.08,8.95]
[1724005127658,3.61002315,145.11,145.08,8.95]
[1724005128567,25.46452315,145.12,145.08,8.95]
[1724005129332,19.09172315,145.12,145.1,8.95]
[1724005129548,3.61002315,145.14,145.1,8.95]
[1724005136936,3.61002315,145.13,145.1,8.95]
[1724005139156,3.37929415,145.13,145.04,35.8]
[1724005139335,7.1833168,145.15,145.08,8.95]
[1724005139538,10.3800502,145.15,145.08,8.95]
[1724005142272,21.0755,145.16,145.08,8.95]
[1724005142273,11.04660357,145.14,145.08,8.95]
[1724005142451,7.84987017,145.14,145.06,8.95]
[1724005142646,7.84987017,145.14,145.07,20.0]
[1724005143075,7.1833168,145.14,145.07,20.0]
[1724005143374,10.38027634,145.14,145.07,20.0]
[1724005143948,7.1833168,145.13,145.07,20.0]
[1724005144152,7.1833168,145.14,145.07,20.0]
[1724005144350,10.38018521,145.14,145.07,20.0]
[1724005145779,7.1833168,145.15,145.08,8.95]
[1724005146077,10.3800283,145.15,145.08,8.95]
[1724005147780,10.3800283,145.14,145.08,8.95]
[1724005147975,7.1833168,145.14,145.08,8.95]
[1724005148353,10.3801351,145.15,145.08,10.32842002]
[1724005148569,7.1833168,145.15,145.08,10.32842002]
[1724005148878,10.37989272,145.15,145.08,8.95]
[1724005149081,7.1833168,145.15,145.08,8.95]
[1724005149268,10.37980801,145.15,145.08,8.95]
[1724005149669,10.37980801,145.14,145.08,8.95]
[1724005149988,7.1833168,145.14,145.08,8.95]
[1724005150674,7.1833168,145.15,145.08,8.95]
[1724005150876,10.37980898,145.15,145.08,8.95]
[1724005151382,10.37980898,145.14,145.08,8.95]
[1724005151564,7.1833168,145.14,145.08,8.95]
[1724005151965,10.37997841,145.15,145.08,8.95]
[1724005152165,7.1833168,145.15,145.08,8.95]
[1724005152371,10.37980801,145.15,145.08,8.95]
[1724005154086,7.1833168,145.15,145.08,8.95]
[1724005154288,10.37981547,145.15,145.08,8.95]
[1724005155086,10.37981547,145.15,145.08,10.32830511]
[1724005156976,28.2588168,145.16,145.1,8.95]
[1724005157872,22.1844168,145.16,145.1,8.95]
[1724005162764,22.1844168,145.16,145.09,45.0]
[1724005162977,22.1844168,145.16,145.09,8.95]
[1724005163381,0.66655337,145.15,145.08,45.0]
[1724005164503,22.1844168,145.16,145.08,45.0]
[1724005166900,14.39174306,145.18,145.11,8.95]
[1724005167190,7.1833168,145.18,145.12,1.37795187]
[1724005167372,10.37908057,145.18,145.12,1.37795187]
[1724005169279,10.37908057,145.18,145.13,8.95]
[1724005169508,7.1833168,145.18,145.13,8.95]
[1724005169678,7.1833168,145.19,145.13,8.95]
[1724005169879,10.37882249,145.19,145.13,8.95]
[1724005170599,7.1833168,145.19,145.13,8.95]
[1724005170785,10.37881984,145.19,145.13,8.95]
[1724005171479,7.1833168,145.19,145.13,8.95]
[1724005172077,23.4439168,145.2,145.13,8.95]
[1724005174179,24.11047017,145.2,145.13,8.95]
[1724005174604,0.66655337,145.19,145.13,8.95]
[1724005174896,23.4439168,145.2,145.13,8.95]
[1724005175095,24.11047017,145.2,145.13,8.95]
[1724005175277,23.4439168,145.2,145.13,8.95]
[1724005177093,16.2606,145.2,145.13,8.95]
[1724005177591,16.2606,145.2,145.14,1.37772292]
[1724005178277,16.2606,145.2,145.13,8.95]
[1724005180384,23.4439168,145.2,145.13,8.95]
[1724005180587,16.2606,145.2,145.13,8.95]
[1724005184902,32.3939168,145.2,145.12,16.1349]
[1724005185310,32.3939168,145.2,145.11,8.95]
[1724005185483,0.66655337,145.19,145.11,8.95]
[1724005187685,33.06047017,145.2,145.11,8.95]
[1724005188387,7.20665773,145.19,145.11,8.95]
[1724005188589,0.66655337,145.18,145.11,8.95]
[1724005188812,15.5559,145.18,145.08,6.2551]
[1724005189001,22.7392168,145.18,145.09,20.0]
[1724005189585,23.40577017,145.18,145.09,20.0]
[1724005189788,22.7392168,145.18,145.09,20.0]
[1724005190393,23.40577017,145.18,145.09,20.0]
[1724005190605,22.7392168,145.18,145.09,28.95]
[1724005193318,7.1833168,145.17,145.09,28.95]
[1724005193610,0.66655337,145.16,145.09,28.95]
[1724005193817,7.1833168,145.17,145.09,28.95]
[1724005194018,0.66655337,145.16,145.09,28.95]
[1724005194518,7.1833168,145.17,145.09,28.95]
[1724005194689,10.37950021,145.17,145.09,28.95]
[1724005198420,7.1833168,145.17,145.1,45.0]
[1724005198590,0.66655337,145.16,145.1,45.0]
[1724005200117,7.1833168,145.17,145.1,45.0]
[1724005201319,10.37931685,145.17,145.1,45.0]
[1724005201703,7.1833168,145.17,145.1,45.0]
[1724005202093,0.66655337,145.16,145.1,45.0]
[1724005202297,0.66655337,145.16,145.09,28.95]
[1724005202497,0.66655337,145.15,145.09,20.0]
[1724005202702,0.66655337,145.15,145.08,20.0]
[1724005203433,8.95,145.13,145.04,6.0344]
[1724005203637,16.1333168,145.11,145.01,16.3942]
[1724005203925,0.66655337,145.1,145.01,8.95]
[1724005204095,8.95,145.09,145.01,8.95]
[1724005204506,11.04797441,145.08,144.99,14.9844]
[1724005204701,15.3615,145.06,144.98,16.3942]
[1724005204899,0.66655337,145.05,144.98,8.95]
[1724005205891,15.3615,145.06,144.98,8.95]
[1724005206315,30.0,145.03,144.98,8.95]
[1724005207912,30.0,145.03,144.99,20.0]
[1724005208117,30.0,145.03,144.99,19.5]
[1724005208711,30.0,145.03,145.0,8.95]
[1724005208919,30.0,145.03,145.0,10.32916907]
[1724005209498,30.0,145.03,145.0,8.95]
[1724005210294,15.3615,145.06,145.0,8.95]
[1724005210500,15.3615,145.06,145.02,8.95]
[1724005210802,74.4906541,145.26,145.04,8.95]
[1724005210803,15.3615,145.09,145.04,8.95]
[1724005211021,30.0,145.05,145.04,8.95]
[1724005211503,15.3615,145.09,145.04,8.95]
[1724005212705,15.3615,145.09,145.05,45.0]
[1724005213423,15.3615,145.12,145.05,45.0]
[1724005214104,0.66655337,145.11,145.05,45.0]
[1724005214427,15.3615,145.12,145.05,45.0]
[1724005215426,15.3615,145.12,145.08,8.95]
[1724005215633,7.20767893,145.14,145.09,8.95]
[1724005215925,16.4257,145.15,145.05,45.0]
[1724005215926,16.4257,145.15,145.07,8.95]
[1724005216234,17.09225337,145.15,145.07,8.95]
[1724005216823,16.4257,145.15,145.07,8.95]
[1724005219549,16.4257,145.15,145.05,45.0]
[1724005219550,16.4257,145.15,145.09,8.95]
[1724005220744,16.4257,145.15,145.05,45.0]
[1724005220921,16.4257,145.15,145.08,8.95]
[1724005223649,16.4257,145.15,145.05,45.0]
[1724005223850,16.4257,145.15,145.08,8.95]
[1724005226927,25.3757,145.15,145.06,8.95]
[1724005227149,25.3757,145.15,145.07,20.0]
[1724005227538,26.04225337,145.15,145.07,20.0]
[1724005228146,25.3757,145.15,145.07,20.0]
[1724005228345,26.04225337,145.15,145.06,8.95]
[1724005228554,0.66655337,145.14,145.06,8.95]
[1724005228933,25.3757,145.15,145.06,8.95]
[1724005229151,7.20724615,145.14,145.06,8.95]
[1724005229368,7.87379952,145.14,145.06,8.95]
[1724005230048,7.20724615,145.14,145.06,8.95]
[1724005230662,7.20724615,145.14,145.08,8.95]
[1724005231251,7.20724615,145.14,145.09,1.37841857]
[1724005231439,16.4257,145.15,145.08,8.95]
[1724005233037,17.09225337,145.15,145.08,8.95]
[1724005233247,16.4257,145.15,145.08,8.95]
[1724005233850,16.4257,145.15,145.06,8.95]
[1724005234052,16.4257,145.15,145.07,20.0]
[1724005234254,25.3757,145.15,145.07,20.0]
[1724005235649,25.3757,145.15,145.06,8.95]
[1724005236644,0.66655337,145.14,145.04,8.95]
[1724005236841,30.4378,145.13,145.02,6.56309289]
[1724005237048,30.4378,145.13,145.03,8.95]
[1724005237236,8.95,145.11,145.03,8.95]
[1724005237559,8.95,145.11,144.98,6.56309289]
[1724005237560,6.36,145.09,145.01,8.95]
[1724005237728,0.66655337,145.08,145.01,8.95]
[1724005238560,6.36,145.09,145.01,8.95]
[1724005244056,15.3971,145.08,144.99,8.95]
[1724005244240,0.66655337,145.07,144.99,8.95]
[1724005244441,15.3971,145.08,144.99,8.95]
[1724005244837,16.06365337,145.08,144.99,8.95]
[1724005245054,15.3971,145.08,144.99,8.95]
[1724005246060,16.06365337,145.08,144.99,8.95]
[1724005246268,15.3971,145.08,144.99,8.95]
[1724005247266,0.66655337,145.07,144.99,8.95]
[1724005247447,15.3971,145.08,144.99,8.95]
[1724005247643,15.3971,145.04,144.96,9.04759394]
[1724005247869,15.3971,145.04,144.96,8.95]
[1724005247870,6.2,145.03,144.96,8.95]
[1724005249964,6.2,145.03,144.92,10.42701109]
[1724005250273,6.2,145.03,144.97,8.95]
[1724005252752,6.2,145.03,144.99,8.95]
[1724005252951,6.2,145.03,144.99,10.32922162]
[1724005253267,6.2,145.03,144.99,8.95]
[1724005262186,6.2,145.03,145.0,1.37924583]
[1724005262691,6.2,145.03,144.99,10.32915488]
[1724005263157,6.2,145.03,145.01,8.95]
[1724005263358,15.3971,145.04,145.01,8.95]
[1724005265780,15.3971,145.04,144.98,45.0]
[1724005265985,15.3971,145.04,145.0,8.95]
[1724005266780,15.3971,145.04,144.93,20.0]
[1724005266982,15.3971,145.04,144.96,8.95]
[1724005267194,15.5993,145.03,144.92,9.04759394]
[1724005267377,15.5993,145.03,144.94,8.95]
[1724005268673,0.66655337,145.02,144.95,45.0]
[1724005268988,15.5993,145.03,144.92,9.04759394]
[1724005269198,16.2023,145.02,144.94,8.95]
[1724005271965,16.86885337,145.02,144.94,8.95]
[1724005272199,16.2023,145.02,144.94,8.95]
[1724005272970,0.66655337,145.01,144.94,8.95]
[1724005274198,23.39358193,145.02,144.96,8.95]
[1724005274712,16.2023,145.02,144.96,8.95]
[1724005282588,0.66655337,145.01,144.94,8.95]
[1724005282993,25.1523,145.02,144.94,8.95]
[1724005283187,25.81885337,145.02,144.94,8.95]
[1724005284086,21.1873,145.01,144.94,8.95]
[1724005286525,3.58909088,145.0,144.94,8.95]
[1724005289214,3.58909088,144.99,144.94,8.95]
[1724005291048,3.58909088,145.0,144.96,8.95]
[1724005291335,21.1873,145.01,144.99,8.95]
[1724005291336,15.0011,145.01,144.99,8.95]
[1724005295124,22.23,145.05,144.99,8.95]
[1724005301244,25.81909088,145.05,144.99,8.95]
[1724005301548,25.81909088,145.05,145.0,1.37923042]
[1724005301723,25.81909088,145.05,145.01,8.95]
[1724005301930,22.23,145.05,145.03,8.95]
[1724005303332,22.23,145.05,144.99,8.95]
[1724005304233,22.23,145.05,145.01,8.95]
[1724005306466,22.23,145.05,145.03,8.95]
[1724005307355,16.0438,145.05,145.03,8.95]
[1724005309666,6.2926,145.08,145.03,8.95]
[1724005309965,6.2926,145.08,145.05,8.95]
[1724005310559,6.2926,145.08,144.97,104.15501253]
[1724005310784,6.2926,145.08,145.03,8.95]
[1724005312139,6.2926,145.08,145.05,8.95]
[1724005314349,6.2926,145.08,144.98,20.0]
[1724005314557,0.66655337,145.07,145.01,8.95]
[1724005314956,9.88169088,145.08,145.01,8.95]
[1724005314957,13.48629711,145.08,145.01,8.95]
[1724005320259,15.2098,145.07,145.01,8.95]
[1724005324976,15.2098,145.07,145.03,8.95]
[1724005331490,15.2098,145.07,144.98,20.0]
[1724005331662,15.2098,145.07,145.02,8.95]
[1724005337594,15.2098,145.07,145.02,0.75]
[1724005337968,0.66655337,145.06,145.0,20.0]
[1724005338177,21.8644,145.05,144.99,8.95]
[1724005338978,0.66655337,145.04,144.99,8.95]
[1724005339168,21.8644,145.05,144.99,8.95]
[1724005340268,21.8644,145.05,144.9,42.2567]
[1724005340469,0.66655337,145.04,144.97,8.95]
[1724005341688,21.8644,145.05,144.97,8.95]
[1724005343266,0.66655337,145.04,144.97,8.95]
[1724005344076,21.8644,145.05,144.97,8.95]
[1724005345876,7.19485272,145.04,144.97,8.95]
[1724005346098,6.4189,145.02,144.94,20.0]
[1724005346394,15.435,145.0,144.94,8.95]
[1724005347591,19.02409088,145.0,144.94,8.95]
[1724005347893,0.66655337,144.99,144.94,8.95]
[1724005348099,19.02409088,145.0,144.94,8.95]
[1724005348396,15.435,145.0,144.96,8.95]
[1724005348604,15.435,145.0,144.98,8.95]
[1724005357906,6.4189,145.02,144.98,8.95]
[1724005358088,6.4189,145.02,145.0,8.95]
[1724005363604,6.4189,145.02,144.91,22.3407]
[1724005363800,7.08545337,145.02,144.96,8.95]
[1724005364116,6.4189,145.02,144.96,8.95]
[1724005371434,3.58909088,145.03,145.0,8.95]